Workbook

Sheet Лист1
C1: МБОУ г. Астрахани "НШДС 106" | F1: Утвердил: | G1: должность | H1: директор
A2: Типовое примерное меню приготавливаемых блюд | G2: фамилия | H2: Е.А. Соловьева
A3: Возрастная категория | E3: 3-7 лет | G3: дата | H3: 1 | I3: 11 | J3: 2025
H4: день | I4: месяц | J4: год
A5: Неделя | B5: День недели | C5: Прием пищи | D5: Раздел меню | E5: Блюда | F5: Вес блюда, г | G5: Белки | H5: Жиры | I5: Углеводы | J5: Калорийность | K5: № рецептуры | L5: Цена
A6: 1 | B6: 1 | C6: Завтрак | D6: гор.блюдо | E6: КАША "ДРУЖБА" (ячка+пшеничка) | F6: 180 | G6: 5.7 | H6: 8.8 | I6: 23.1 | J6: 194.7 | K6: 190
D8: гор.напиток | E8: КОФЕЙНЫЙ НАПИТОК С МОЛОКОМ | F8: 180 | G8: 3 | H8: 2.8 | I8: 23.9 | J8: 133.2 | K8: 379
D9: хлеб | E9: БУТЕРБРОДЫ С ПОВИДЛОМ | F9: 50 | G9: 2.1 | H9: 0.8 | I9: 26.1 | J9: 120.1 | K9: 2
D10: фрукты
C12: 2 Завтрак | E12: СОК | F12: 125 | G12: 0.6 | H12: 0.1 | I12: 12.6 | J12: 53.8 | K12: 442
D13: итого | F13: =SUM(F6:F12) -> 535 | G13: =SUM(G6:G12) -> 11.4 | H13: 12.5 | I13: 85.7 | J13: 501.8 | L13: =SUM(L6:L12) -> 0
C14: Обед | D14: закуска | E14: ОГУРЕЦ СОЛЕНЫЙ | F14: 30 | G14: 0.2 | I14: 0.5 | J14: 3.9
D15: 1 блюдо | E15: СУП С РИСОМ | F15: 200 | G15: 0.6 | H15: 2 | I15: 5.4 | J15: 42.4 | K15: 118
D16: 2 блюдо | E16: ГУЛЯШ ИЗ ОТВАРНОЙ ГОВЯДИНЫ | F16: 70 | G16: 10.9 | H16: 12.3 | I16: 3.1 | J16: 166.3 | K16: 260
D17: гарнир | E17: ПЮРЕ ГОРОХОВОЕ С МАСЛОМ | F17: 110 | G17: 11.7 | H17: 5 | I17: 24.5 | J17: 189.7 | K17: 199
D18: напиток | E18: КОМПОТ ИЗ СМЕСИ СУХОФРУКТОВ | F18: 200 | I18: 19.4 | J18: 77.4 | K18: 349
D19: хлеб бел. | E19: ХЛЕБ ПШЕНИЧНЫЙ | F19: 40 | G19: 2.8 | H19: 0.2 | I19: 18.3 | J19: 86.2
D20: хлеб черн. | E20: ХЛЕБ РЖАНОЙ | F20: 50 | G20: 5.8 | H20: 0.6 | I20: 37.6 | J20: 179
D22: итого | F22: =SUM(F14:F20) -> 700 | G22: =SUM(G14:G20) -> 32 | H22: 20.1 | I22: 108.8 | J22: 744.9 | L22: 0
A23: =A6 -> 1 | B23: =B6 -> 1 | C23: Уплотненный полдник | D23: закуска
D24: 1 блюдо | E24: КРЕНДЕЛЬ САХАРНЫЙ | F24: 50 | G24: 3.7 | H24: 6.7 | I24: 29.8 | J24: 193.5 | K24: 415
D25: 2 блюдо
D26: гарнир
D27: напиток | E27: КМСЛОМОЛОЧНЫЙ НАПИТОК | F27: 200 | G27: 6 | H27: 0.2 | I27: 8 | J27: 62 | K27: 435
D28: хлеб бел.
D29: хлеб черн.
D32: итого | F32: =SUM(F23:F31) -> 250 | G32: =SUM(G23:G31) -> 9.7 | H32: 6.9 | I32: 37.8 | J32: 255.5 | L32: =SUM(L23:L31) -> 0
A33: =A6 -> 1 | B33: =B6 -> 1 | C33: Итого за день: | F33: =F13+F32+F22 -> 1485 | G33: =G13+G32+G22 -> 53.1 | H33: 39.5 | I33: 232.3 | J33: 1502.2 | L33: 0
A34: 1 | B34: 2 | C34: Завтрак | E34: КАША ПШЕННАЯ ВЯЗКАЯ | F34: 180 | G34: 7.3 | H34: 8.4 | I34: 35.6 | J34: 247.9 | K34: 184
E35: ЧАЙ С МОЛОКОМ | F35: 180 | G35: 1 | H35: 1.1 | I35: 11.6 | J35: 60 | K35: 378
E36: БУТЕРБРОД С МАСЛОМ | F36: 40 | G36: 3.7 | H36: 14.6 | I36: 24.8 | J36: 245.4 | K36: 1
E39: КОМПОТ ИЗ СВЕЖИХ ПЛОДОВ | F39: 200 | G39: 0.6 | H39: 0.2 | I39: 29.2 | J39: 124 | K39: 394
D41: итого | F41: =SUM(F34:F40) -> 600 | G41: =SUM(G34:G40) -> 12.6 | H41: =SUM(H34:H40) -> 24.3 | I41: =SUM(I34:I40) -> 101.2 | J41: =SUM(J34:J40) -> 677.3 | L41: 0
C42: Обед | D42: закуска | E42: САЛАТ "СВЕКОЛКА" | F42: 60 | G42: 0.7 | H42: 6 | I42: 4 | J42: 73.3 | K42: 50
D43: 1 блюдо | E43: ЩИ | F43: 250 | G43: 1.5 | H43: 5 | I43: 4.9 | J43: 71.1 | K43: 83
D44: 2 блюдо | E44: МЯСО ГОВЯДИНЫ ТУШЕННАЯ С | F44: 150 | G44: 16.3 | H44: 16.5 | I44: 14.8 | J44: 272.8 | K44: 258
D45: гарнир | E45: ОВОЩАМИ
D46: напиток | E46: НАПИТОК ИЗ ПЛОДОВ ШИПОВНИКА | F46: 200 | G46: 0.7 | H46: 0.3 | I46: 28.7 | J46: 132.5 | K46: 388
D47: хлеб бел. | E47: ХЛЕБ ПШЕНИЧНЫЙ | F47: 40 | G47: 2.8 | H47: 0.2 | I47: 18.3 | J47: 86.2 | K47: б/н
D48: хлеб черн. | E48: ХЛЕБ РЖАНОЙ | F48: 50 | G48: 5.8 | H48: 0.6 | I48: 37.6 | J48: 179 | K48: б/н
D50: итого | F50: =SUM(F42:F48) -> 750 | G50: =SUM(G42:G48) -> 27.8 | H50: 28.6 | I50: 108.3 | J50: 814.9 | L50: 0
A51: =A34 -> 1 | B51: =B34 -> 2 | C51: Уплотненный полдник | D51: закуска
D52: 1 блюдо | E52: ВАТРУШКА С ТВОРОГОМ СО СГУЩЕННЫМ МОЛОКОМ | F52: 120 | G52: 15.2 | H52: 8.1 | I52: 56.8 | J52: 361.5
K53: 695
D54: гарнир
D55: напиток | E55: КИСЕЛЬ | F55: 200 | I55: 28.2 | J55: 112.8 | K55: 411
D56: хлеб бел. | E56: ФРУКТ | F56: 100 | G56: 0.4 | H56: 0.4 | I56: 9.8 | J56: 47
D60: итого | F60: =SUM(F51:F59) -> 420 | G60: =SUM(G51:G59) -> 15.6 | H60: =SUM(H51:H59) -> 8.5 | I60: =SUM(I51:I59) -> 94.8 | J60: =SUM(J51:J59) -> 521.3 | L60: 0
A61: =A34 -> 1 | B61: =B34 -> 2 | C61: Итого за день: | F61: =F41+F60+F50 -> 1770 | G61: =G41+G60+G50 -> 56 | H61: 61.4 | I61: 304.3 | J61: 2013.5 | L61: 0
A62: 1 | B62: 3 | C62: Завтрак | D62: гор.блюдо | E62: КАША МАННАЯ ЖИДКАЯ | F62: 180 | G62: 5.2 | H62: 7.9 | I62: 25.8 | J62: 192.2 | K62: 189
D64: гор.напиток | E64: ЧАЙ С САХАРОМ | F64: 185/15 | G64: 0.2 | H64: 0.1 | I64: 15 | J64: 60 | K64: 430
D65: хлеб | E65: БУТЕРБРОД С СЫРОМ | F65: 50 | G65: 11.5 | H65: 11.3 | I65: 25.7 | J65: 252.6 | K65: 3
D66: фрукты
D67: доп напиток | E67: КИСЛОМОЛОЧНЫЙ НАПИТОК | F67: 200 | G67: 6 | H67: 0.2 | I67: 8 | J67: 62 | K67: 435
D69: итого | F69: =SUM(F62:F68) -> 430 | G69: =SUM(G62:G68) -> 22.9 | H69: =SUM(H62:H68) -> 19.5 | I69: =SUM(I62:I68) -> 74.5 | J69: =SUM(J62:J68) -> 566.8 | L69: 0
C70: Обед | D70: закуска | E70: САЛАТ ИЗ КВАШЕНОЙ КАПУСТЫ | F70: 100 | G70: 1.5 | H70: 5.1 | I70: 7.4 | J70: 83.5 | K70: 40
D71: 1 блюдо | E71: СУП С МАКАРОННЫМИ ИЗДЕЛИЯМИ | F71: 200 | G71: 2 | H71: 3.4 | I71: 12.4 | J71: 88.6 | K71: 105
D72: 2 блюдо | E72: ПЛОВ С ГРЕЧКОЙ И КУРИЦЕЙ | F72: 180 | G72: 20.8 | H72: 26.3 | I72: 24.7 | J72: 418.5 | K72: 311
D73: гарнир
D74: напиток | E74: НАПИТОК ЛИМОННЫЙ | F74: 200 | G74: 0.2 | I74: 25.7 | J74: 105 | K74: 436
D75: хлеб бел. | E75: ХЛЕБ ПОРЦИОННЫЙ | F75: 80 | G75: 6.7 | H75: 0.5 | I75: 43.8 | J75: 206.8 | K75: б/н
D76: хлеб черн.
D78: итого | F78: =SUM(F70:F76) -> 760 | G78: =SUM(G70:G76) -> 31.2 | H78: 35.3 | I78: 114 | J78: 902.4 | L78: 0
A79: =A62 -> 1 | B79: =B62 -> 3 | C79: Уплотненный полдник | D79: закуска
D80: 1 блюдо | E80: КОТЛЕТЫ ИЛИ БИТОЧКИ РЫБНЫЕ | F80: 75 | G80: 24.1 | H80: 22.4 | I80: 9 | J80: 333.6 | K80: 239
D81: 2 блюдо
D82: гарнир | E82: КАРТОФЕЛЬНОЕ ПЮРЕ | F82: 100 | G82: 2.1 | H82: 11.6 | I82: 14 | J82: 168.6 | K82: 128
D83: напиток | E83: ЧАЙ С САХАРОМ | F83: 185/15 | G83: 0.2 | H83: 0.1 | I83: 15 | J83: 60 | K83: 430
D84: хлеб бел. | E84: ХЛЕБ ПШЕНИЧНЫЙ | F84: 20 | G84: 2.5 | H84: 0.2 | I84: 16.4 | J84: 77.4 | K84: б/н
D85: хлеб черн.
D88: итого | F88: =SUM(F79:F87) -> 195 | G88: =SUM(G79:G87) -> 28.9 | H88: =SUM(H79:H87) -> 34.3 | I88: =SUM(I79:I87) -> 54.4 | J88: =SUM(J79:J87) -> 639.6 | L88: 0
A89: =A62 -> 1 | B89: =B62 -> 3 | C89: Итого за день: | F89: =F69+F88+F78 -> 1385 | G89: =G69+G88+G78 -> 83 | H89: 89.1 | I89: 242.9 | J89: 2108.8 | L89: 0
A90: 1 | B90: 4 | C90: Завтрак | D90: гор.блюдо | E90: КАША РИСОВАЯ ВЯЗКАЯ | F90: 180 | G90: 2.6 | H90: 5.2 | I90: 29.4 | J90: 174.5 | K90: 324
D92: гор.напиток | E92: КАКАО С МОЛОКОМ | F92: 180 | G92: 3.4 | H92: 3.3 | I92: 21.9 | J92: 132.1 | K92: 433
D93: хлеб | E93: БУТЕРБРОД С МАСЛОМ | F93: 40 | G93: 2.3 | H93: 9.1 | I93: 15.5 | J93: 153.4 | K93: 1
D94: доп напиток | E94: СОК ЯБЛОЧНЫЙ | F94: 125 | G94: 0.6 | H94: 0.1 | I94: 12.6 | J94: 53.8 | K94: 442
D96: итого | F96: =SUM(F90:F95) -> 525 | G96: =SUM(G90:G95) -> 8.9 | H96: =SUM(H90:H95) -> 17.7 | I96: =SUM(I90:I95) -> 79.4 | J96: =SUM(J90:J95) -> 513.8 | L96: =SUM(L90:L95) -> 0
C97: Обед | D97: закуска | E97: САЛАТ "СВЕКОЛКА" | F97: 60 | G97: 0.7 | H97: 6 | I97: 4 | J97: 73.3 | K97: 50
D98: 1 блюдо | E98: СУП КАРТОФЕЛЬНЫЙ ГОРОХОВЫЙ | F98: 200 | G98: 4.6 | H98: 4.3 | I98: 15.1 | J98: 117.6 | K98: 99
D99: 2 блюдо | E99: ТЕФТЕЛИ ИЗ ГОВЯДИНЫ С РИСОМ | F99: 50/25 | G99: 7.8 | H99: 7.9 | I99: 6.6 | J99: 128.8 | K99: 285
D100: гарнир | E100: КАША ГРЕЧНЕВАЯ РАССЫПЧАТАЯ | F100: 150 | G100: 8.5 | H100: 6.2 | I100: 38.3 | J100: 242.4 | K100: 323
D101: напиток | E101: КОМПОТ ИЗ СМЕСИ СУХОФРУКТОВ | F101: 200 | I101: 19.4 | J101: 77.4 | K101: 349
D102: хлеб бел. | E102: ХЛЕБ РЖАНОЙ | F102: 50 | G102: 5.8 | H102: 0.6 | I102: 37.6 | J102: 179 | K102: б/н
D103: хлеб черн. | E103: ХЛЕБ ПШЕНИЧНЫЙ | F103: 40 | G103: 2.8 | H103: 0.2 | I103: 18.3 | J103: 86.2 | K103: б/н
D105: итого | F105: =SUM(F97:F103) -> 700 | G105: =SUM(G97:G103) -> 30.2 | H105: 25.2 | I105: 139.3 | J105: 904.7 | L105: 0
A106: =A90 -> 1 | B106: =B90 -> 4 | C106: Уплотненный полдник | D106: закуска | E106: КАРТОФЕЛЬНОЕ ПЮРЕ | F106: 105 | G106: 2.2 | H106: 12.1 | I106: 14.7 | J106: 176.1 | K106: 128
D107: 1 блюдо | E107: БУТЕРБРОД С ИКРОЙ БАКЛАЖАНОВОЙ | F107: 55 | G107: 2.7 | H107: 7 | I107: 16.1 | J107: 138.1 | K107: 2
D108: 2 блюдо
D109: гарнир
D110: напиток | E110: ЧАЙ С САХАРОМ | F110: 185/15 | G110: 0.2 | H110: 0.1 | I110: 15 | J110: 60 | K110: 430
E111: ПЕЧЕНЬЕ | F111: 30 | G111: 2.3 | H111: 2.9 | I111: 22.3 | J111: 125.1
D112: хлеб черн.
D115: итого | F115: =SUM(F106:F114) -> 190 | G115: =SUM(G106:G114) -> 7.4 | H115: =SUM(H106:H114) -> 22.1 | I115: =SUM(I106:I114) -> 68.1 | J115: =SUM(J106:J114) -> 499.3 | L115: 0
A116: =A90 -> 1 | B116: =B90 -> 4 | C116: Итого за день: | F116: =F96+F115+F105 -> 1415 | G116: =G96+G115+G105 -> 46.5 | H116: 65 | I116: 286.8 | J116: 1917.8 | L116: 0
A117: 1 | B117: 5 | C117: Завтрак | D117: гор.блюдо | E117: КАША ГРЕЧНЕВАЯ ВЯЗКАЯ | F117: 180 | G117: 5.3 | H117: 6.2 | I117: 25.7 | J117: 179.6 | K117: 324
D118: доп напиток | E118: СОК | F118: 125 | G118: 0.6 | H118: 0.1 | I118: 12.6 | J118: 53.8 | K118: 442
D119: гор.напиток | E119: ЧАЙ С МОЛОКОМ | F119: 180 | G119: 1 | H119: 1.1 | I119: 11.6 | J119: 60 | K119: 378
D120: хлеб | E120: БУТЕРБРОД С СЫРОМ | F120: 50 | G120: 6.9 | H120: 6.8 | I120: 15.4 | J120: 151.4 | K120: 3
D121: сладкое
D124: итого | F124: =SUM(F117:F123) -> 535 | G124: =SUM(G117:G123) -> 13.8 | H124: =SUM(H117:H123) -> 14.2 | I124: =SUM(I117:I123) -> 65.3 | J124: =SUM(J117:J123) -> 444.8 | L124: 0
C125: Обед | D125: закуска | E125: ОГУРЕЦ СОЛЕНЫЙ | F125: 30 | G125: 0.2 | I125: 0.5 | J125: 3.9 | K125: б/н
D126: 1 блюдо | E126: СУП СВЕКОЛЬНЫЙ СО СМЕТАННОЙ | F126: 200 | G126: 1.2 | H126: 4.1 | I126: 8.9 | J126: 77.9 | K126: 99
D127: 2 блюдо | E127: ПЛОВ ИЗ ПТИЦЫ | F127: 150 | G127: 17.9 | H127: 13.7 | I127: 27.7 | J127: 306 | K127: 311
D128: гарнир
D129: напиток | E129: НАПИТОК ИЗ ПЛОДОВ ШИПОВНИКА | F129: 200 | G129: 0.7 | H129: 0.3 | I129: 28.7 | J129: 132.5 | K129: 388
D130: хлеб бел. | E130: ХЛЕБ ПШЕНИЧНЫЙ | F130: 40 | G130: 2.8 | H130: 0.2 | I130: 18.3 | J130: 86.2 | K130: б/н
D131: хлеб черн. | E131: ХЛЕБ РЖАНОЙ | F131: 50 | G131: 3 | H131: 0.4 | I131: 19.3 | J131: 92.8 | K131: б/н
D133: итого | F133: =SUM(F125:F131) -> 670 | G133: =SUM(G125:G131) -> 25.8 | H133: 18.7 | I133: 103.4 | J133: 699.3 | L133: 0
A134: =A117 -> 1 | B134: =B117 -> 5 | C134: Уплотненный полдник | D134: закуска | E134: БУЛОЧКА МОЛОЧНАЯ | F134: 50 | G134: 9.8 | H134: 5.6 | I134: 29.5 | J134: 207.8 | K134: 434
D135: 1 блюдо | E135: КИСЕЛЬ | F135: 200 | I135: 28.2 | J135: 112.8 | K135: 411
E136: КОНДИТЕРСКОЕ ИЗДЕЛИЕ | F136: 30 | G136: 0.8 | H136: 1 | I136: 23.2 | J136: 106.2
D137: гарнир
D138: напиток
D139: хлеб бел.
D140: хлеб черн.
D143: итого | F143: =SUM(F134:F142) -> 280 | G143: =SUM(G134:G142) -> 10.6 | H143: =SUM(H134:H142) -> 6.6 | I143: =SUM(I134:I142) -> 80.9 | J143: =SUM(J134:J142) -> 426.8 | L143: 0
A144: =A117 -> 1 | B144: =B117 -> 5 | C144: Итого за день: | F144: =F124+F143+F133 -> 1485 | G144: =G124+G143+G133 -> 50.2 | H144: 39.5 | I144: 249.6 | J144: 1570.9 | L144: 0
A145: 2 | B145: 1 | C145: Завтрак | D145: гор.блюдо | E145: КАША ОВСЯНАЯ "ГЕРКУЛЕС" ВЯЗКАЯ | F145: 180 | G145: 7 | H145: 9.6 | I145: 28.6 | J145: 229.4 | K145: 184
D147: гор.напиток | E147: ЧАЙ С МОЛОКОМ | F147: 180 | G147: 1 | H147: 1.1 | I147: 11.6 | J147: 60 | K147: 378
D148: хлеб | E148: БУТЕРБРОД С СЫРОМ | F148: 50 | G148: 9.9 | H148: 9.7 | I148: 22.1 | J148: 216.5 | K148: 3
D149: фрукты
D150: доп напиток | E150: СОК | F150: 125 | G150: 0.6 | H150: 0.1 | I150: 12.6 | J150: 53.8 | K150: 442
D152: итого | F152: =SUM(F145:F151) -> 535 | G152: =SUM(G145:G151) -> 18.5 | H152: 20.5 | I152: 74.9 | J152: 559.7 | L152: =SUM(L145:L151) -> 0
C153: Обед | D153: закуска | E153: САЛАТ ИЗ СОЛЕНЫХ ОГУРЦОВ С ЛУКОМ | F153: 60 | G153: 0.5 | H153: 3.1 | I153: 1.6 | J153: 37 | K153: 21
D154: 1 блюдо | E154: СУП КРЕСТЬЯНСКИЙ С ПШЕНОМ | F154: 200 | G154: 1.5 | H154: 4.2 | I154: 9.8 | J154: 83.3 | K154: 94
D155: 2 блюдо | E155: ГОЛУБЦЫ ЛЕНИВЫЕ | F155: 160 | G155: 14.5 | H155: 13.3 | I155: 14.2 | J155: 235.5 | K155: 298
D156: гарнир
D157: напиток | E157: КОМПОТ ИЗ СМЕСИ СУХОФРУКТОВ | F157: 200 | I157: 19.4 | J157: 77.4 | K157: 349
D158: хлеб бел. | E158: ХЛЕБ ПШЕНИЧНЫЙ | F158: 40 | G158: 2.8 | H158: 0.2 | I158: 18.3 | J158: 86.2
D159: хлеб черн. | E159: ХЛЕБ РЖАНОЙ | F159: 50 | G159: 5.8 | H159: 0.6 | I159: 37.6 | J159: 179
D161: итого | F161: =SUM(F153:F159) -> 710 | G161: =SUM(G153:G159) -> 25.1 | H161: 21.4 | I161: 100.9 | J161: 698.4 | L161: 0
A162: =A145 -> 2 | B162: =B145 -> 1 | C162: Уплотненный полдник | D162: закуска
D163: 1 блюдо | E163: ОМЛЕТ НАТУРАЛЬНЫЙ | F163: 110 | G163: 10.8 | H163: 18.8 | I163: 2 | J163: 219.9 | K163: 214
D164: 2 блюдо
D165: напиток | E165: КИСЛОМОЛОЧНЫЙ НАПИТОК | F165: 200 | G165: 5.2 | H165: 5 | I165: 22 | J165: 154 | K165: 435
E166: КОНДИТЕРСКОЕ ИЗДЕЛИЕ | F166: 30 | G166: 2.3 | H166: 2.9 | I166: 22.3 | J166: 125.1
D167: хлеб бел.
D168: хлеб черн.
D171: итого | F171: =SUM(F162:F170) -> 340 | G171: =SUM(G162:G170) -> 18.3 | H171: 26.7 | I171: 46.3 | J171: 499 | L171: =SUM(L162:L170) -> 0
A172: =A145 -> 2 | B172: =B145 -> 1 | C172: Итого за день: | F172: =F152+F171+F161 -> 1585 | G172: =G152+G171+G161 -> 61.9 | H172: 68.6 | I172: 222.1 | J172: 1757.1 | L172: 0
A173: 2 | B173: 2 | C173: Завтрак | D173: гор.блюдо | E173: КАША "ДРУЖБА" (рис+пшено) | F173: 180 | G173: 5.5 | H173: 8.8 | I173: 24 | J173: 198.5 | K173: 190
D174: закуска
D175: гор.напиток | E175: КОФЕЙНЫЙ НАПИТОК С МОЛОКОМ | F175: 180 | G175: 3 | H175: 2.8 | I175: 23.9 | J175: 133.2 | K175: 379
D176: хлеб | E176: БУТЕРБРОД С МАСЛОМ | F176: 40 | G176: 1.8 | H176: 13.4 | I176: 12 | J176: 176 | K176: 1
D177: сладкое
D178: доп нпиток | E178: КОМПОТ ИЗ СВЕЖИХ ПЛОДОВ | F178: 200 | G178: 0.2 | H178: 0.2 | I178: 27.9 | J178: 115 | K178: 394
D180: итого | F180: =SUM(F173:F179) -> 600 | G180: =SUM(G173:G179) -> 10.5 | H180: 25.2 | I180: 87.8 | J180: 622.7 | L180: =SUM(L173:L179) -> 0
C181: Обед | D181: закуска | E181: САЛАТ ОВОЩНОЙ | F181: 60 | G181: 0.3 | H181: 3.5 | I181: 0.9 | J181: 36.6 | K181: 43
D182: 1 блюдо | E182: БОРЩ С КАПУСТОЙ И КАРТОФЕЛЕМ | F182: 250 | G182: 2.2 | H182: 5.8 | I182: 13.3 | J182: 116.9 | K182: 82
D183: 2 блюдо | E183: ГУЛЯШ ИЗ ОТВАРНОЙ ГОВЯДИНЫ | F183: 80 | G183: 12 | H183: 13.7 | I183: 2.9 | J183: 183.2 | K183: 246
D184: гарнир | E184: МАКАРОННЫЕ ИЗДЕЛИЯ ОТВАРНЫЕ | F184: 100 | G184: 3.7 | H184: 1.9 | I184: 23.9 | J184: 127.8 | K184: 309
D185: напиток | E185: НАПИТОК ИЗ ПЛОДОВ ШИПОВНИКА | F185: 200 | G185: 0.7 | H185: 0.3 | I185: 28.7 | J185: 132.5 | K185: 388
D186: хлеб бел. | E186: ХЛЕБ ПШЕНИЧНЫЙ | F186: 40 | G186: 2.8 | H186: 0.2 | I186: 18.3 | J186: 86.2
D187: хлеб черн. | E187: ХЛЕБ РЖАНОЙ | F187: 50 | G187: 5.8 | H187: 0.6 | I187: 37.6 | J187: 179
D189: итого | F189: =SUM(F181:F187) -> 780 | G189: =SUM(G181:G187) -> 27.5 | H189: 26 | I189: 125.6 | J189: 862.2 | L189: 0
A190: =A173 -> 2 | B190: =B173 -> 2 | C190: Уплотненный полдник | D190: закуска
D191: 1 блюдо | E191: ЗАПЕКАНКА ИЗ ТВОРОГА СО СГУЩЕННЫМ МОЛОКОМ | F191: 100 | G191: 16 | H191: 13.2 | I191: 25.2 | J191: 286.5 | K191: 219
D192: 2 блюдо
D193: гарнир
D194: напиток | E194: КИСЕЛЬ | F194: 200 | I194: 28.2 | J194: 112.8 | K194: 411
E195: ФРУКТ | F195: 100 | G195: 1.5 | H195: 0.5 | I195: 21 | J195: 96
D196: хлеб черн.
D199: итого | F199: =SUM(F190:F198) -> 400 | G199: =SUM(G190:G198) -> 17.5 | H199: 13.7 | I199: 74.4 | J199: 495.3 | L199: =SUM(L190:L198) -> 0
A200: =A173 -> 2 | B200: =B173 -> 2 | C200: Итого за день: | F200: =F180+F199+F189 -> 1780 | G200: =G180+G199+G189 -> 55.5 | H200: 64.9 | I200: 287.8 | J200: 1980.2 | K200: 0 | L200: 0
A201: 2 | B201: 3 | C201: Завтрак | D201: гор.блюдо | E201: КАША ПШЕНИЧНАЯ ЖИДКАЯ | F201: 180 | G201: 6.4 | H201: 7.8 | I201: 30.4 | J201: 218.1 | K201: 189
D203: гор.напиток | E203: ЧАЙ С САХАРОМ | F203: 185/15 | G203: 0.2 | H203: 0.1 | I203: 15 | J203: 60 | K203: 430
D204: хлеб | E204: БУТЕРБРОДЫ С ПОВИДЛОМ | F204: 40 | G204: 1.9 | H204: 0.7 | I204: 22.9 | J204: 105.4 | K204: 2
D205: фрукты
D206: доп напиток | E206: КИСЛОМОЛОЧНЫЙ НАПИТОК | F206: 200 | G206: 5.2 | H206: 5 | I206: 22 | J206: 154 | K206: 435
D208: итого | F208: =SUM(F201:F207) -> 420 | G208: =SUM(G201:G207) -> 13.7 | H208: 13.6 | I208: 90.3 | J208: 537.5 | L208: =SUM(L201:L207) -> 0
C209: Обед | D209: закуска | E209: САЛАТ ИЗ ГОРОШКА ЗЕЛЕНОГО КОНСЕРВИРОВАННОГО | F209: 60 | G209: 1.7 | H209: 3.1 | I209: 3.7 | J209: 49.4 | K209: 10
D210: 1 блюдо | E210: СУП КАРТОФЕЛЬНЫЙ С РИСОМ НА КУРИНОМ БУЛЬОНЕ | F210: 200 | G210: 1.9 | H210: 2.3 | I210: 16.4 | J210: 94.2 | K210: 101
D211: 2 блюдо | E211: ПТИЦА , ТУШЕННЫЕ В СОУСЕ | F211: 100 | G211: 14 | H211: 17.2 | I211: 3.4 | J211: 229.7 | K211: 290
D212: гарнир | E212: МАКАРОННЫЕ ИЗДЕЛИЯ ОТВАРНЫЕ | F212: 150 | G212: 5.4 | H212: 4.8 | I212: 34.6 | J212: 203.7
D213: напиток | E213: НАПИТОК ЛИМОННЫЙ | F213: 200 | G213: 0.2 | I213: 25.7 | J213: 105 | K213: 436
D214: хлеб бел. | E214: ХЛЕБ ПШЕНИЧНЫЙ | F214: 40 | G214: 2.8 | H214: 0.2 | I214: 18.3 | J214: 86.2
D215: хлеб черн. | E215: ХЛЕБ РЖАНОЙ | F215: 50 | G215: 5.8 | H215: 0.6 | I215: 37.6 | J215: 179
D217: итого | F217: =SUM(F209:F215) -> 800 | G217: =SUM(G209:G215) -> 31.8 | H217: 28.2 | I217: 139.7 | J217: 947.2 | L217: 0
A218: =A201 -> 2 | B218: =B201 -> 3 | C218: Уплотненный полдник | D218: закуска
D219: 1 блюдо | E219: КАРТОФЕЛЬНОЕ ПЮРЕ | F219: 105 | G219: 2.2 | H219: 12.1 | I219: 14.7 | J219: 176.1 | K219: 128
D220: 2 блюдо | E220: РЫБА (ФИЛЕ) ЗАПЕЧЕННАЯ В ТОМАТНОМ СОУСЕ | F220: 70/30 | G220: 15.4 | H220: 4.8 | I220: 9 | J220: 142.1 | K220: 238
D221: гарнир
D222: напиток | E222: ЧАЙ С САХАРОМ | F222: 185/15 | G222: 0.2 | H222: 0.1 | I222: 15 | J222: 60 | K222: 430
D223: хлеб бел. | E223: ХЛЕБ ПШЕНИЧНЫЙ | F223: 20 | G223: 1.6 | H223: 0.2 | I223: 17.9 | J223: 79.2
D224: хлеб черн.
D227: итого | F227: =SUM(F218:F226) -> 125 | G227: =SUM(G218:G226) -> 19.4 | H227: 17.2 | I227: 56.6 | J227: 457.4 | L227: =SUM(L218:L226) -> 0
A228: =A201 -> 2 | B228: =B201 -> 3 | C228: Итого за день: | F228: =F208+F227+F217 -> 1345 | G228: =G208+G227+G217 -> 64.9 | H228: 59 | I228: 286.6 | J228: 1942.1 | K228: 0 | L228: 0
A229: 2 | B229: 4 | C229: Завтрак | D229: гор.блюдо | E229: КАША ПШЕННАЯ ВЯЗКАЯ | F229: 180 | G229: 7.3 | H229: 8.4 | I229: 35.6 | J229: 247.9 | K229: 184
E230: БУТЕРБРОД С МАСЛОМ | F230: 40 | G230: 1.8 | H230: 13.4 | I230: 12 | J230: 176 | K230: 1
D231: гор.напиток | E231: ЧАЙ С МОЛОКОМ | F231: 180 | G231: 1 | H231: 1.1 | I231: 11.6 | J231: 60
D232: доп напиток | E232: КОМПОТ ИЗ СВЕЖИХ ПЛОДОВ | F232: 200 | G232: 0.3 | H232: 0.1 | I232: 27.3 | J232: 113.1 | K232: 394
D233: фрукты
D234: сладкое
D236: итого | F236: =SUM(F229:F235) -> 600 | G236: =SUM(G229:G235) -> 10.4 | H236: 23 | I236: 86.5 | J236: 597 | L236: =SUM(L229:L235) -> 0
C237: Обед | D237: закуска | E237: САЛАТ ИЗ КВАШЕНОЙ КАПУСТЫ | F237: 100 | G237: 1.6 | H237: 5.1 | I237: 8.2 | J237: 87.6 | K237: 40
D238: 1 блюдо | E238: СУП КАРТОФЕЛЬНЫЙ ПЕРЛОВЫЙ | F238: 250 | G238: 3.7 | H238: 2.8 | I238: 19.6 | J238: 119 | K238: 98
D239: 2 блюдо | E239: БЕФСТРОГАНОВ | F239: 80 | G239: 12.5 | H239: 17.7 | I239: 4.5 | J239: 233.9 | K239: 375
D240: гарнир | E240: КАША РИСОВАЯ РАССЫПЧАТАЯ | F240: 100 | G240: 2.4 | H240: 4 | I240: 24.8 | J240: 144.9 | K240: 181
D241: напиток | E241: КОМПОТ ИЗ СМЕСИ СУХОФРУКТОВ | F241: 200 | I241: 19.4 | J241: 77.4 | K241: 349
D242: хлеб бел. | E242: ХЛЕБ ПШЕНИЧНЫЙ | F242: 40 | G242: 2.8 | H242: 0.2 | I242: 18.3 | J242: 86.2
... 35 more rows
